fUST/lending_fUST_20250924
["ID","MTS","AMOUNT","RATE_DAILY","PERIOD"]
[387407372,1758717049611,-480.0,0.00019726,2]
[387407373,1758717049620,-1016.88,0.00019726,2]
[387407374,1758717049630,-151.0,0.00019726,2]
[387407375,1758717049640,-151.0,0.00019726,2]
[387407376,1758717049649,-4337.65,0.00019726,2]
[387407377,1758717049659,-884.3,0.00019726,2]
[387407378,1758717049669,-480.0,0.00019726,2]
[387407379,1758717049678,-480.0,0.00019726,2]
[387407380,1758717049687,-480.0,0.00019726,2]
[387407381,1758717049697,-480.0,0.00019726,2]
[387407382,1758717049706,-480.0,0.00019726,2]
[387407383,1758717049715,-151.0,0.00019726,2]
[387407384,1758717049725,-480.0,0.00019726,2]
[387407385,1758717049734,-480.0,0.00019726,2]
[387407386,1758717049743,-151.0,0.00019726,2]
[387407387,1758717049752,-480.0,0.00019726,2]
[387407388,1758717049761,-480.0,0.00019726,2]
[387407389,1758717049770,-480.0,0.00019726,2]
[387407390,1758717049779,-614.74,0.00019726,2]
[387407391,1758717049789,-480.0,0.00019726,2]
[387407392,1758717049799,-480.0,0.00019726,2]
[387407393,1758717049809,-1093.96,0.00019726,2]
[387407394,1758717049818,-480.0,0.00019726,2]
[387407395,1758717049827,-480.0,0.00019726,2]
[387407396,1758717049836,-480.0,0.00019726,2]
[387407397,1758717049845,-151.0,0.00019726,2]
[387407398,1758717049856,-480.0,0.00019726,2]
[387407399,1758717049866,-544.6245407,0.00019726,2]
[387407400,1758717049875,-151.0,0.00019726,2]
[387407401,1758717049885,-480.0,0.00019726,2]
[387407402,1758717049894,-749.94,0.00019726,2]
[387407403,1758717049952,-151.0,0.00019726,2]
[387407404,1758717049965,-151.0,0.00019726,2]
[387407405,1758717049974,-2365.09,0.00019726,2]
[387407406,1758717049984,-500.0,0.00019726,2]
[387407407,1758717049993,-501.39616755,0.00019773,2]
[387407408,1758717050002,-500.0,0.00019773,2]
[387407409,1758717050012,-516.27022145,0.00019773,2]
[387407410,1758717050020,-503.45545785,0.00019773,2]
[387407411,1758717050029,-500.0,0.00019773,2]
[387407412,1758717050038,-500.0,0.00019773,2]
[387407413,1758717050047,-500.0,0.00019773,2]
[387407414,1758717050055,-500.0,0.00019773,2]
[387407415,1758717050069,-500.0,0.00019773,2]
[387407416,1758717050078,-500.0,0.00019773,2]
[387407417,1758717050087,-500.0,0.00019773,2]
[387407418,1758717050097,-500.0,0.00019773,2]
[387407419,1758717050106,-500.0,0.00019773,2]
[387407420,1758717050115,-170.39552554,0.00019773,2]
[387407421,1758717050124,-151.0,0.000198,2]
[387407422,1758717050133,-151.0,0.000199,2]
[387407423,1758717050142,-3396.28176778,0.000199,2]
[387407424,1758717050152,-1000.0,0.00019921,2]
[387407425,1758717050161,-1000.0,0.00019921,2]
[387407426,1758717050171,-480.0,0.0002,2]
[387407427,1758717050180,-480.0,0.0002,2]
[387407428,1758717050189,-480.0,0.0002,2]
[387407429,1758717050198,-480.0,0.0002,2]
[387407430,1758717050207,-480.0,0.0002,2]
[387407431,1758717050216,-480.0,0.0002,2]
[387407432,1758717050225,-480.0,0.0002,2]
[387407433,1758717050234,-480.0,0.0002,2]
[387407434,1758717050243,-500.0,0.0002,2]
[387407435,1758717050252,-480.0,0.0002,2]
[387407436,1758717050261,-480.0,0.0002,2]
[387407437,1758717050270,-480.0,0.0002,2]
[387407438,1758717050279,-480.0,0.0002,2]
[387407439,1758717050288,-154.13923541,0.0002,2]
[387407440,1758717050297,-480.0,0.0002,2]
[387407441,1758717050306,-485.91319878,0.0002,2]
[387407442,1758717050315,-480.0,0.0002,2]
[387407443,1758717050324,-480.0,0.0002,2]
[387407444,1758717050332,-480.0,0.0002,2]
[387407445,1758717050341,-480.0,0.0002,2]
[387407446,1758717050354,-484.51804193,0.0002,2]
[387407447,1758717050371,-480.0,0.0002,2]
[387407448,1758717050386,-480.0,0.0002,2]
[387407449,1758717050405,-480.0,0.0002,2]
[387407450,1758717050424,-480.0,0.0002,2]
[387407451,1758717050441,-480.0,0.0002,2]
[387407452,1758717050458,-480.0,0.0002,2]
[387407453,1758717050474,-480.0,0.0002,2]
[387407454,1758717050488,-189.45599079,0.0002,2]
[387407455,1758717050505,-480.0,0.0002,2]
[387407456,1758717050524,-480.0,0.0002,2]
[387407457,1758717050542,-480.0,0.0002,2]
[387407458,1758717050555,-480.0,0.0002,2]
[387407459,1758717050574,-404.67792022,0.0002,2]
[387407460,1758717050588,-480.0,0.0002,2]
[387407461,1758717050604,-480.0,0.0002,2]
[387407462,1758717050617,-485.82199185,0.0002,2]
[387407463,1758717050632,-480.0,0.0002,2]
[387407464,1758717050645,-480.0,0.0002,2]
[387407465,1758717050660,-897.88,0.0002,2]
[387407466,1758717050674,-480.0,0.0002,2]
[387407467,1758717050688,-480.0,0.0002,2]
[387407468,1758717050703,-480.0,0.0002,2]
[387407469,1758717050716,-480.0,0.0002,2]
[387407470,1758717050730,-480.16,0.0002,2]
[387407471,1758717050744,-480.0,0.0002,2]
[387407472,1758717050759,-480.0,0.0002,2]
[387407473,1758717050773,-480.0,0.0002,2]
[387407474,1758717050787,-480.0,0.0002,2]
[387407475,1758717050802,-480.0,0.0002,2]
[387407476,1758717050816,-480.0,0.0002,2]
[387407477,1758717050830,-873.83,0.0002,2]
[387407478,1758717050844,-480.0,0.0002,2]
[387407479,1758717050858,-480.0,0.0002,2]
[387407480,1758717050872,-480.0,0.0002,2]
[387407481,1758717050886,-480.0,0.0002,2]
[387407482,1758717050900,-480.0,0.0002,2]
[387407483,1758717050914,-480.0,0.0002,2]
[387407484,1758717050928,-480.0,0.0002,2]
[387407485,1758717050943,-480.0,0.0002,2]
[387407486,1758717050961,-480.0,0.0002,2]
[387407487,1758717050976,-480.0,0.0002,2]
[387407488,1758717050990,-480.0,0.0002,2]
[387407489,1758717051003,-480.0,0.0002,2]
[387407490,1758717051107,-547.26651483,0.0002,2]
[387407491,1758717051116,-480.0,0.0002,2]
[387407492,1758717051125,-480.0,0.0002,2]
[387407493,1758717051134,-480.0,0.0002,2]
[387407494,1758717051144,-262.3187295,0.0002,2]
[387407495,1758717051153,-480.0,0.0002,2]
[387407496,1758717051164,-480.0,0.0002,2]
[387407497,1758717051173,-480.0,0.0002,2]
[387407498,1758717051182,-480.0,0.0002,2]
[387407499,1758717051192,-480.0,0.0002,2]
[387407500,1758717051201,-659.07,0.0002,2]
[387407501,1758717051210,-480.0,0.0002,2]
[387407502,1758717051220,-480.0,0.0002,2]
[387407503,1758717051229,-480.0,0.0002,2]
[387407504,1758717051238,-497.65,0.0002,2]
[387407505,1758717051248,-480.0,0.0002,2]
[387407506,1758717051257,-480.0,0.0002,2]
[387407507,1758717051267,-486.54576559,0.0002,2]
[387407508,1758717051276,-530.81,0.0002,2]
[387407509,1758717051285,-480.0,0.0002,2]
[387407510,1758717051294,-480.0,0.0002,2]
[387407511,1758717051303,-480.0,0.0002,2]
[387407512,1758717051312,-865.45,0.0002,2]
[387407513,1758717051321,-480.0,0.0002,2]
[387407514,1758717051330,-283.8261988,0.0002,2]
[387407515,1758717051339,-480.0,0.0002,2]
[387407516,1758717051348,-480.0,0.0002,2]
[387407517,1758717051357,-480.0,0.0002,2]
[387407518,1758717051366,-246.52047997,0.0002,2]
[387407519,1758717051376,-480.0,0.0002,2]
[387407520,1758717051385,-480.0,0.0002,2]
[387407521,1758717051394,-462.87360581,0.0002,2]
[387407522,1758717051403,-1630.0,0.0002,2]
[387407523,1758717051412,-480.0,0.0002,2]
[387407524,1758717051422,-480.0,0.0002,2]
[387407525,1758717051431,-480.0,0.0002,2]
[387407526,1758717051440,-694.09,0.0002,2]
[387407527,1758717051450,-451.5263495,0.0002,2]
[387407528,1758717051459,-480.0,0.0002,2]
[387407529,1758717051468,-480.0,0.0002,2]
[387407530,1758717051477,-480.0,0.0002,2]
[387407531,1758717051487,-890.27,0.0002,2]
[387407532,1758717051496,-818.2,0.0002,2]
[387407533,1758717051505,-480.0,0.0002,2]
[387407534,1758717051515,-480.0,0.0002,2]
[387407535,1758717051524,-437.85862222,0.0002,2]
[387407536,1758717051533,-480.0,0.0002,2]
[387407537,1758717051542,-480.0,0.0002,2]
[387407538,1758717051551,-480.0,0.0002,2]
[387407539,1758717051560,-480.0,0.0002,2]
[387407540,1758717051570,-175.57397466,0.0002,2]
[387407541,1758717051579,-1072.49,0.0002,2]
[387407542,1758717051589,-480.0,0.0002,2]
[387407543,1758717051598,-480.0,0.0002,2]
[387407544,1758717051608,-480.0,0.0002,2]
[387407545,1758717051617,-480.0,0.0002,2]
[387407546,1758717051626,-480.0,0.0002,2]
[387407547,1758717051635,-480.0,0.0002,2]
[387407548,1758717051645,-480.0,0.0002,2]
[387407549,1758717051655,-480.0,0.0002,2]
[387407550,1758717051666,-559.36,0.0002,2]
[387407551,1758717051675,-642.71,0.0002,2]
[387407552,1758717051684,-480.0,0.0002,2]
[387407553,1758717051694,-480.0,0.0002,2]
[387407554,1758717051703,-480.0,0.0002,2]
[387407555,1758717051713,-1563.27,0.0002,2]
[387407556,1758717051722,-480.0,0.0002,2]
[387407557,1758717051732,-480.0,0.0002,2]
[387407558,1758717051741,-480.0,0.0002,2]
[387407559,1758717051750,-480.0,0.0002,2]
[387407560,1758717051759,-983.42,0.0002,2]
[387407561,1758717051769,-480.0,0.0002,2]
[387407562,1758717051779,-480.0,0.0002,2]
[387407563,1758717051789,-480.0,0.0002,2]
[387407564,1758717051798,-480.0,0.0002,2]
[387407565,1758717051807,-480.0,0.0002,2]
[387407566,1758717051817,-480.0,0.0002,2]
[387407567,1758717051826,-480.0,0.0002,2]
[387407568,1758717051836,-480.0,0.0002,2]
[387407569,1758717051845,-480.0,0.0002,2]
[387407570,1758717051854,-480.0,0.0002,2]
[387407571,1758717051864,-480.0,0.0002,2]
[387407572,1758717051873,-480.0,0.0002,2]
[387407573,1758717051882,-480.0,0.0002,2]
[387407574,1758717051892,-1168.5,0.0002,2]
[387407575,1758717051901,-480.0,0.0002,2]
[387407576,1758717051911,-834.86,0.0002,2]
[387407577,1758717051920,-698.07,0.0002,2]
[387407578,1758717051929,-480.0,0.0002,2]
[387407579,1758717051939,-480.0,0.0002,2]
[387407580,1758717051948,-2463.32,0.0002,2]
[387407581,1758717051957,-480.0,0.0002,2]
[387407582,1758717051966,-855.89,0.0002,2]
[387407583,1758717051976,-480.0,0.0002,2]
[387407584,1758717051985,-480.0,0.0002,2]
[387407585,1758717051994,-480.0,0.0002,2]
[387407586,1758717052003,-626.95,0.0002,2]
[387407587,1758717052013,-480.0,0.0002,2]
[387407588,1758717052022,-480.0,0.0002,2]
[387407589,1758717052032,-480.0,0.0002,2]
[387407590,1758717052041,-609.73269849,0.0002,2]
[387407591,1758717052050,-480.0,0.0002,2]
[387407592,1758717052061,-1016.88,0.0002,2]
[387407593,1758717052071,-4337.65,0.0002,2]
[387407594,1758717052081,-884.3,0.0002,2]
[387407595,1758717052090,-480.0,0.0002,2]
[387407596,1758717052099,-480.0,0.0002,2]
[387407597,1758717052110,-480.0,0.0002,2]
[387407598,1758717052119,-480.0,0.0002,2]
[387407599,1758717052129,-480.0,0.0002,2]
[387407600,1758717052140,-480.0,0.0002,2]
[387407601,1758717052149,-480.0,0.0002,2]
[387407602,1758717052159,-484.20275059,0.0002,2]
[387407603,1758717052167,-480.0,0.0002,2]
[387407604,1758717052177,-480.0,0.0002,2]
[387407605,1758717052186,-614.74,0.0002,2]
[387407606,1758717052195,-480.0,0.0002,2]
[387407607,1758717052204,-480.0,0.0002,2]
[387407608,1758717052214,-1093.96,0.0002,2]
[387407609,1758717052223,-480.0,0.0002,2]
[387407610,1758717052233,-480.0,0.0002,2]
[387407611,1758717052242,-480.0,0.0002,2]
[387407612,1758717052251,-480.0,0.0002,2]
[387407613,1758717052260,-480.0,0.0002,2]
[387407614,1758717052270,-749.94,0.0002,2]
[387407615,1758717052279,-2365.09,0.0002,2]
[387407616,1758717052289,-502.97187597,0.00020021,2]
[387407617,1758717052298,-298.5814752,0.00020021,2]
[387407618,1758717052307,-1000.0,0.00020021,2]
[387407619,1758717052316,-392.81426608,0.00020021,2]
[387407620,1758717052326,-500.0,0.00020021,2]
[387407621,1758717052396,-500.0,0.00020021,2]
[387407622,1758717052406,-500.0,0.00020021,2]
[387407623,1758717052415,-500.0,0.00020125,2]
[387407624,1758717052425,-480.0,0.00020273,2]
[387407625,1758717052434,-480.0,0.00020273,2]
[387407626,1758717052445,-480.0,0.00020273,2]
[387407627,1758717052454,-480.0,0.00020273,2]
[387407628,1758717052464,-480.0,0.00020273,2]
[387407629,1758717052473,-480.0,0.00020273,2]
[387407630,1758717052483,-480.0,0.00020273,2]
[387407631,1758717052492,-480.0,0.00020273,2]
[387407632,1758717052501,-480.0,0.00020273,2]
[387407633,1758717052511,-480.0,0.00020273,2]
[387407634,1758717052520,-480.0,0.00020273,2]
[387407635,1758717052530,-454.40810527,0.00020273,2]
[387407636,1758717052540,-584.45072688,0.00020273,2]
[387407637,1758717052549,-487.16597027,0.00020273,2]
[387407638,1758717052558,-488.38207277,0.00020273,2]
[387407639,1758717052568,-480.0,0.00020273,2]
[387407640,1758717052578,-480.0,0.00020273,2]
[387407641,1758717052587,-489.04647391,0.00020273,2]
[387407642,1758717052597,-480.0,0.00020273,2]
[387407643,1758717052606,-480.0,0.00020273,2]
[387407644,1758717052615,-480.0,0.00020273,2]
[387407645,1758717052625,-480.0,0.00020273,2]
[387407646,1758717052634,-480.0,0.00020273,2]
[387407647,1758717052643,-480.0,0.00020273,2]
[387407648,1758717052653,-480.0,0.00020273,2]
[387407649,1758717052663,-480.0,0.00020273,2]
[387407650,1758717052672,-583.93974504,0.00020273,2]
[387407651,1758717052681,-480.0,0.00020273,2]
[387407652,1758717052690,-897.88,0.00020273,2]
[387407653,1758717052700,-480.0,0.00020273,2]
[387407654,1758717052709,-480.0,0.00020273,2]
[387407655,1758717052718,-480.0,0.00020273,2]
[387407656,1758717052728,-480.16,0.00020273,2]
[387407657,1758717052737,-480.0,0.00020273,2]
[387407658,1758717052746,-480.0,0.00020273,2]
[387407659,1758717052756,-201.92136141,0.00020273,2]
[387407660,1758717052766,-480.0,0.00020273,2]
[387407661,1758717052776,-873.83,0.00020273,2]
[387407662,1758717052785,-480.0,0.00020273,2]
[387407663,1758717052795,-480.0,0.00020273,2]
[387407664,1758717052804,-480.0,0.00020273,2]
[387407665,1758717052813,-480.0,0.00020273,2]
[387407666,1758717052823,-480.0,0.00020273,2]
[387407667,1758717052833,-480.0,0.00020273,2]
[387407668,1758717052842,-480.0,0.00020273,2]
[387407669,1758717052851,-480.0,0.00020273,2]
[387407670,1758717052862,-520.83,0.00020273,2]
[387407671,1758717052871,-480.0,0.00020273,2]
[387407672,1758717052881,-268.78765107,0.00020273,2]
[387407673,1758717052892,-499.01417281,0.00020273,2]
[387407674,1758717052902,-480.0,0.00020273,2]
[387407675,1758717052911,-480.0,0.00020273,2]
[387407676,1758717052921,-659.07,0.00020273,2]
[387407677,1758717052930,-480.0,0.00020273,2]
[387407678,1758717052939,-480.0,0.00020273,2]
[387407679,1758717052949,-515.79,0.00020273,2]
[387407680,1758717052959,-497.65,0.00020273,2]
[387407681,1758717052968,-480.0,0.00020273,2]
[387407682,1758717052977,-480.0,0.00020273,2]
[387407683,1758717052987,-530.81,0.00020273,2]
[387407684,1758717052996,-480.0,0.00020273,2]
[387407685,1758717053006,-480.0,0.00020273,2]
[387407686,1758717053015,-865.45,0.00020273,2]
[387407687,1758717053025,-480.0,0.00020273,2]
[387407688,1758717053034,-480.0,0.00020273,2]
[387407689,1758717053043,-347.89486358,0.00020273,2]
[387407690,1758717053053,-1630.0,0.00020273,2]
[387407691,1758717053068,-480.0,0.00020273,2]
[387407692,1758717053078,-480.0,0.00020273,2]
[387407693,1758717053087,-156.88371552,0.00020273,2]
[387407694,1758717053096,-694.09,0.00020273,2]
[387407695,1758717053107,-480.0,0.00020273,2]
[387407696,1758717053116,-480.0,0.00020273,2]
[387407697,1758717053126,-480.0,0.00020273,2]
[387407698,1758717053137,-890.27,0.00020273,2]
[387407699,1758717053147,-818.2,0.00020273,2]
[387407700,1758717053156,-480.0,0.00020273,2]
[387407701,1758717053165,-480.0,0.00020273,2]
[387407702,1758717053174,-480.0,0.00020273,2]
[387407703,1758717053183,-480.0,0.00020273,2]
[387407704,1758717053193,-480.0,0.00020273,2]
[387407705,1758717053202,-480.0,0.00020273,2]
[387407706,1758717053211,-1072.49,0.00020273,2]
[387407707,1758717053220,-480.0,0.00020273,2]
[387407708,1758717053229,-480.0,0.00020273,2]
[387407709,1758717053239,-480.0,0.00020273,2]
[387407710,1758717053249,-480.0,0.00020273,2]
[387407711,1758717053258,-480.0,0.00020273,2]
[387407712,1758717053267,-480.0,0.00020273,2]
[387407713,1758717053277,-480.0,0.00020273,2]
[387407714,1758717053286,-480.0,0.00020273,2]
[387407715,1758717053296,-559.36,0.00020273,2]
[387407716,1758717053305,-642.71,0.00020273,2]
[387407717,1758717053315,-480.0,0.00020273,2]
[387407718,1758717053324,-397.10095866,0.00020273,2]
[387407719,1758717053334,-480.0,0.00020273,2]
[387407720,1758717053343,-1563.27,0.00020273,2]
[387407721,1758717053352,-480.0,0.00020273,2]
[387407722,1758717053362,-497.95198107,0.00020273,2]
[387407723,1758717053371,-480.0,0.00020273,2]
[387407724,1758717053381,-983.42,0.00020273,2]
[387407725,1758717053389,-480.0,0.00020273,2]
[387407726,1758717053399,-480.0,0.00020273,2]
[387407727,1758717053408,-480.0,0.00020273,2]
[387407728,1758717053417,-480.0,0.00020273,2]
[387407729,1758717053426,-480.0,0.00020273,2]
[387407730,1758717053435,-480.0,0.00020273,2]
[387407731,1758717053445,-480.0,0.00020273,2]
[387407732,1758717053454,-480.0,0.00020273,2]
[387407733,1758717053463,-480.0,0.00020273,2]
[387407734,1758717053472,-480.0,0.00020273,2]
[387407735,1758717053483,-480.0,0.00020273,2]
[387407736,1758717053493,-480.0,0.00020273,2]
[387407737,1758717053504,-480.0,0.00020273,2]
[387407738,1758717053514,-1168.5,0.00020273,2]
[387407739,1758717053524,-176.53213472,0.00020273,2]
[387407740,1758717053533,-834.86,0.00020273,2]
[387407741,1758717053543,-698.07,0.00020273,2]
[387407742,1758717053609,-480.0,0.00020273,2]
[387407743,1758717053619,-151.0,0.00020273,2]
[387407744,1758717053629,-2463.32,0.00020273,2]
[387407745,1758717053639,-480.0,0.00020273,2]
[387407746,1758717053648,-855.89,0.00020273,2]
[387407747,1758717053657,-480.0,0.00020273,2]
[387407748,1758717053667,-480.0,0.00020273,2]
[387407749,1758717053676,-480.0,0.00020273,2]
[387407750,1758717053686,-626.95,0.00020273,2]
[387407751,1758717053695,-480.0,0.00020273,2]
[387407752,1758717053705,-480.0,0.00020273,2]
[387407753,1758717053714,-480.0,0.00020273,2]
[387407754,1758717053723,-480.0,0.00020273,2]
[387407755,1758717053733,-151.0,0.00020273,2]
[387407756,1758717053742,-1016.88,0.00020273,2]
[387407757,1758717053751,-151.0,0.00020273,2]
[387407758,1758717053761,-4337.65,0.00020273,2]
[387407759,1758717053770,-884.3,0.00020273,2]
[387407760,1758717053779,-480.0,0.00020273,2]
[387407761,1758717053789,-480.0,0.00020273,2]
[387407762,1758717053799,-480.0,0.00020273,2]
[387407763,1758717053808,-151.0,0.00020273,2]
[387407764,1758717053818,-480.0,0.00020273,2]
[387407765,1758717053827,-480.0,0.00020273,2]
[387407766,1758717053837,-490.11962355,0.00020273,2]
[387407767,1758717053846,-614.74,0.00020273,2]
[387407768,1758717053855,-480.0,0.00020273,2]
[387407769,1758717053864,-494.62463786,0.00020273,2]
[387407770,1758717053874,-1093.96,0.00020273,2]
[387407771,1758717053883,-480.0,0.00020273,2]
[387407772,1758717053892,-480.0,0.00020273,2]
[387407773,1758717053901,-480.0,0.00020273,2]
[387407774,1758717053909,-161.16329,0.00020273,2]
[387407775,1758717053919,-480.0,0.00020273,2]
[387407776,1758717053928,-480.0,0.00020273,2]
[387407777,1758717053937,-749.94,0.00020273,2]
[387407778,1758717053946,-2365.09,0.00020273,2]
[387407779,1758717053955,-500.0,0.00020274,2]
[387407780,1758717053964,-500.0,0.00020321,2]
[387407781,1758717053974,-618.41826506,0.00020321,2]
[387407782,1758717053984,-500.0,0.00020321,2]
[387407783,1758717053994,-502.27075849,0.00020321,2]
[387407784,1758717054003,-500.0,0.00020468,2]
[387407785,1758717054013,-500.0,0.00020508,2]
[387407786,1758717054022,-500.0,0.00020508,2]
[387407787,1758717054031,-500.0,0.00020508,2]
[387407788,1758717054041,-500.0,0.00020508,2]
[387407789,1758717054050,-500.0,0.00020508,2]
[387407790,1758717054060,-500.0,0.00020508,2]
[387407791,1758717054073,-501.17606149,0.00020508,2]
[387407792,1758717054082,-500.0,0.00020508,2]
[387407793,1758717054091,-1865.32,0.00020538,3]
[387407794,1758717054101,-932.66,0.00020538,3]
[387407795,1758717054111,-466.32,0.00020538,3]
[387407796,1758717054120,-151.0,0.00020538,2]
[387407797,1758717054130,-298.420465,0.00020538,2]
[387407798,1758717054141,-151.0,0.00020538,2]
[387407799,1758717054151,-480.0,0.00020547,2]
[387407800,1758717054160,-480.0,0.00020547,2]
[387407801,1758717054170,-313.66233662,0.00020547,2]
[387407802,1758717054179,-480.0,0.00020547,2]
[387407803,1758717054189,-480.0,0.00020547,2]
[387407804,1758717054198,-480.0,0.00020547,2]
[387407805,1758717054207,-480.0,0.00020547,2]
[387407806,1758717054217,-171.39419411,0.00020547,2]
[387407807,1758717054226,-480.0,0.00020547,2]
[387407808,1758717054235,-480.0,0.00020547,2]
[387407809,1758717054245,-480.0,0.00020547,2]
[387407810,1758717054254,-480.0,0.00020547,2]
[387407811,1758717054264,-480.0,0.00020547,2]
[387407812,1758717054274,-480.0,0.00020547,2]
[387407813,1758717054283,-480.0,0.00020547,2]
[387407814,1758717054293,-480.0,0.00020547,2]
[387407815,1758717054303,-480.0,0.00020547,2]
[387407816,1758717054312,-480.0,0.00020547,2]
[387407817,1758717054322,-480.0,0.00020547,2]
[387407818,1758717054332,-480.0,0.00020547,2]
[387407819,1758717054341,-897.88,0.00020547,2]
[387407820,1758717054352,-480.0,0.00020547,2]
[387407821,1758717054361,-480.0,0.00020547,2]
[387407822,1758717054371,-480.0,0.00020547,2]
[387407823,1758717054380,-480.16,0.00020547,2]
[387407824,1758717054389,-480.0,0.00020547,2]
[387407825,1758717054398,-480.0,0.00020547,2]
[387407826,1758717054408,-151.0,0.00020547,2]
[387407827,1758717054418,-288.373348,0.00020547,2]
[387407828,1758717054427,-244.71448409,0.00020547,2]
[387407829,1758717054437,-151.0,0.00020547,2]
[387407830,1758717054446,-873.83,0.00020547,2]
[387407831,1758717054455,-158.46015753,0.00020547,2]
[387407832,1758717054464,-480.0,0.00020547,2]
[387407833,1758717054474,-480.0,0.00020547,2]
[387407834,1758717054483,-480.0,0.00020547,2]
[387407835,1758717054493,-480.0,0.00020547,2]
[387407836,1758717054502,-480.0,0.00020547,2]
[387407837,1758717054511,-151.0,0.00020547,2]
[387407838,1758717054521,-480.0,0.00020547,2]
[387407839,1758717054530,-480.0,0.00020547,2]
[387407840,1758717054539,-480.0,0.00020547,2]
[387407841,1758717054549,-659.07,0.00020547,2]
[387407842,1758717054558,-480.0,0.00020547,2]
[387407843,1758717054567,-480.0,0.00020547,2]
[387407844,1758717054577,-497.65,0.00020547,2]
[387407845,1758717054586,-480.0,0.00020547,2]
[387407846,1758717054596,-480.0,0.00020547,2]
[387407847,1758717054605,-530.81,0.00020547,2]
[387407848,1758717054614,-480.0,0.00020547,2]
[387407849,1758717054624,-480.0,0.00020547,2]
[387407850,1758717054633,-865.45,0.00020547,2]
[387407851,1758717054643,-480.0,0.00020547,2]
[387407852,1758717054653,-151.0,0.00020547,2]
[387407853,1758717054719,-480.0,0.00020547,2]
[387407854,1758717054729,-151.0,0.00020547,2]
[387407855,1758717054739,-1630.0,0.00020547,2]
[387407856,1758717054749,-480.0,0.00020547,2]
[387407857,1758717054758,-694.09,0.00020547,2]
[387407858,1758717054767,-576.67,0.00020547,2]
[387407859,1758717054776,-480.0,0.00020547,2]
[387407860,1758717054786,-480.0,0.00020547,2]
[387407861,1758717054795,-890.27,0.00020547,2]
[387407862,1758717054805,-818.2,0.00020547,2]
[387407863,1758717054814,-480.0,0.00020547,2]
[387407864,1758717054823,-480.0,0.00020547,2]
[387407865,1758717054834,-480.0,0.00020547,2]
[387407866,1758717054843,-480.0,0.00020547,2]
[387407867,1758717054852,-480.0,0.00020547,2]
[387407868,1758717054861,-480.0,0.00020547,2]
[387407869,1758717054870,-151.0,0.00020547,2]
[387407870,1758717054880,-151.0,0.00020547,2]
[387407871,1758717054889,-1072.49,0.00020547,2]